bitfinex/quotes_ETHUSD_20240701
["timestamp","ask_amount","ask_price","bid_price","bid_amount"]
[1719817336052,2.86459,3490.9,3490.2,12.975]
[1719817336376,2.86459,3490.9,3490.3,2.316023]
[1719817338572,2.86459,3490.9,3490.4,2.3337]
[1719817339978,2.86447,3491.1,3490.4,3.1387]
[1719817340347,2.86447,3491.1,3490.6,0.805]
[1719817340556,2.86415,3491.5,3491.0,0.805]
[1719817340886,2.86418,3491.4,3491.0,0.805]
[1719817343306,2.86407,3491.6,3491.0,0.805]
[1719817343965,2.86352,3492.2,3491.6,2.2897]
[1719817344165,2.4745,3492.4,3491.6,2.2897]
[1719817344166,2.86345,3492.3,3491.6,2.2897]
[1719817344712,2.4726,3492.6,3491.8,2.86383]
[1719817344897,2.86337,3492.4,3491.8,0.805]
[1719817345999,2.86337,3492.4,3491.7,0.05727578]
[1719817346799,2.86344,3492.3,3491.7,0.05727578]
[1719817347006,2.86344,3492.3,3491.7,0.94528436]
[1719817351802,2.86335,3492.5,3491.8,0.805]
[1719817352097,2.86337,3492.4,3491.8,0.805]
[1719817352286,5.4726,3492.9,3491.9,2.4378]
[1719817352287,3.0,3492.9,3491.9,2.4378]
[1719817352493,2.86303,3492.8,3492.0,0.62469109]
[1719817353268,0.805,3492.7,3491.9,5.30151]
[1719817354367,2.8632,3492.6,3491.9,5.30151]
[1719817356200,0.805,3492.7,3492.0,0.0572665]
[1719817356710,2.86303,3492.8,3492.0,0.0572665]
[1719817357781,2.86303,3492.8,3492.0,2.9209365]
[1719817357982,2.86303,3492.8,3492.1,0.90275865]
[1719817358182,2.86303,3492.8,3492.1,3.76634865]
[1719817359216,0.805,3492.9,3492.1,3.76634865]
[1719817359419,6.66796,3492.9,3492.1,3.76634865]
[1719817360115,2.86306,3492.8,3492.1,3.76634865]
[1719817361688,2.86306,3492.8,3492.2,2.3616]
[1719817365496,2.86312,3492.7,3492.2,2.3616]
[1719817365690,3.66812,3492.7,3492.2,2.3616]
[1719817375332,2.86325,3492.6,3492.2,2.3616]
[1719817375708,2.86333,3492.5,3491.8,10.4385]
[1719817378168,2.86333,3492.5,3491.8,3.1185]
[1719817378639,2.86333,3492.5,3491.8,3.17577067]
[1719817379343,2.86333,3492.5,3491.8,3.88447415]
[1719817381125,2.86333,3492.5,3491.8,3.82720348]
[1719817383051,2.86333,3492.5,3491.8,3.8844742]
[1719817383249,3.66812,3492.7,3491.8,6.7483142]
[1719817383462,2.86312,3492.7,3491.9,3.85519343]
[1719817383633,2.86312,3492.7,3492.0,2.4219]
[1719817384351,2.86321,3492.6,3492.0,2.4219]
[1719817386945,2.86309,3492.8,3492.0,2.4219]
[1719817387145,5.86295,3492.9,3492.2,2.86352]
[1719817387353,2.86295,3492.9,3492.2,2.86352]
[1719817388169,2.86295,3492.9,3492.0,6.86961769]
[1719817388853,2.86306,3492.8,3492.0,6.86961769]
[1719817389067,2.86313,3492.7,3492.0,6.86961769]
[1719817389347,2.86313,3492.7,3492.0,5.28553]
[1719817390962,2.86319,3492.6,3492.0,2.4219]
[1719817391171,3.66819,3492.6,3492.0,2.4219]
[1719817393830,2.86319,3492.6,3492.0,2.4219]
[1719817399345,2.86338,3492.4,3492.0,2.4219]
[1719817400779,2.86344,3492.3,3491.6,0.805]
[1719817400952,2.86329,3492.5,3491.7,2.385]
[1719817400953,5.29373,3492.4,3491.7,2.385]
[1719817401150,0.805,3492.3,3491.7,2.385]
[1719817401877,2.86361,3492.1,3491.7,2.385]
[1719817406983,2.86369,3492.0,3491.7,2.385]
[1719817407185,0.805,3492.3,3491.5,7.32]
[1719817407186,2.86382,3491.9,3491.5,7.32]
[1719817407385,2.86382,3491.9,3491.5,9.7548]
[1719817408071,2.86382,3491.9,3491.5,2.4348]
[1719817418113,2.86362,3492.1,3491.5,2.4348]
[1719817418293,2.86362,3492.1,3491.5,3.87980133]
[1719817419676,2.86362,3492.1,3491.7,0.805]
[1719817421919,2.86362,3492.1,3491.5,3.87980133]
[1719817423319,2.86345,3492.3,3491.5,6.74389133]
[1719817425401,2.86353,3492.2,3491.5,6.74389133]
[1719817427229,2.86353,3492.2,3491.5,6.10389]
[1719817431437,2.86339,3492.4,3491.6,2.86398]
[1719817435542,2.86339,3492.4,3491.7,2.86391]
[1719817439058,2.86345,3492.3,3491.7,2.86391]
[1719817439249,0.366845,3492.2,3491.5,6.10389]
[1719817439450,2.86352,3492.2,3491.5,6.10389]
[1719817439837,2.86352,3492.2,3491.5,5.29889]
[1719817444594,2.86352,3492.2,3491.5,2.4348]
[1719817444895,2.86363,3492.1,3491.5,2.4348]
[1719817447185,2.86369,3492.0,3491.5,2.4348]
[1719817447497,2.86375,3492.0,3491.4,7.32]
[1719817449812,2.86375,3492.0,3491.3,2.2567]
[1719817450285,0.805,3492.1,3491.3,2.2567]
[1719817450286,2.86377,3491.9,3491.3,2.2567]
[1719817450599,0.805,3492.1,3491.3,2.2567]
[1719817450600,2.86386,3491.8,3491.3,2.2567]
[1719817456713,2.86386,3491.8,3491.4,0.805]
[1719817457737,2.86386,3491.8,3491.3,3.61175222]
[1719817459917,5.26146,3491.8,3491.3,1.35505222]
[1719817460117,5.26146,3491.8,3491.1,3.54971222]
[1719817460646,2.86394,3491.7,3491.1,3.54971222]
[1719817466636,2.86394,3491.7,3491.1,3.2453]
[1719817467440,2.86415,3491.5,3491.0,7.32]
[1719817467647,2.86418,3491.4,3490.7,5.12433]
[1719817468871,2.86418,3491.4,3490.7,5.41487008]
[1719817469080,0.805,3491.6,3490.7,5.41487008]
[1719817469256,2.86416,3491.5,3490.7,5.41487008]
[1719817469575,0.805,3491.6,3490.6,8.125]
[1719817469764,0.805,3491.0,3490.6,7.32]
[1719817470170,5.19034,3491.1,3490.6,7.32]
[1719817470775,5.19034,3491.1,3490.2,11.29243297]
[1719817470776,2.86451,3491.0,3490.2,11.29243297]
[1719817472859,2.86459,3490.9,3490.2,10.48743297]
[1719817473055,2.86459,3490.9,3490.1,2.3818]
[1719817473281,2.86459,3490.9,3490.2,1.543242]
[1719817473771,2.86468,3490.8,3490.2,1.543242]
[1719817475876,2.86468,3490.8,3490.2,2.348242]
[1719817481452,2.86452,3491.0,3490.2,2.348242]
[1719817482397,2.86452,3491.0,3490.2,1.543242]
[1719817483587,2.86452,3491.0,3490.1,6.35030945]
[1719817486556,2.86459,3490.9,3490.1,6.35030945]
[1719817487188,3.66959,3490.9,3490.1,6.35030945]
[1719817489176,0.805,3490.9,3490.1,3.48507945]
[1719817489378,5.23796,3490.7,3490.1,0.29827945]
[1719817489700,5.23796,3490.7,3490.0,3.0]
[1719817489891,5.23796,3490.7,3490.0,0.64721186]
[1719817491111,5.23796,3490.7,3489.9,10.5007]
[1719817491112,2.86484,3490.6,3489.9,10.5007]
[1719817491312,2.86484,3490.6,3489.9,9.6957]
[1719817494489,2.86484,3490.6,3489.9,2.3757]
[1719817495901,2.86484,3490.6,3489.8,3.96587417]
[1719817496420,2.86484,3490.6,3489.8,1.10039417]
[1719817496583,2.86492,3490.5,3489.8,1.10039417]
[1719817496783,2.86492,3490.5,3489.8,2.77485059]
[1719817497190,2.86501,3490.4,3489.7,2.4586]
[1719817497391,3.2323,3490.3,3489.7,2.4586]
[1719817498422,2.4273,3490.3,3489.7,2.4586]
[1719817502092,5.29238,3490.3,3489.7,2.4586]
[1719817502423,5.29238,3490.3,3489.6,8.42144268]
[1719817502590,5.29238,3490.3,3489.6,10.36662295]
[1719817503401,5.29238,3490.3,3489.6,3.04662295]
[1719817508752,2.4273,3490.3,3489.6,5.91227295]
[1719817509928,2.4273,3490.3,3489.8,0.805]
[1719817512320,2.86492,3490.5,3489.8,0.805]
[1719817512526,2.86492,3490.5,3489.6,2.24162295]
[1719817512527,2.4298,3490.7,3490.2,0.805]
[1719817521804,5.24511,3491.0,3490.2,3.67015]
[1719817522096,2.3806,3491.0,3490.4,3.66997]
[1719817522394,2.3806,3491.0,3490.4,1.46424172]
[1719817528396,2.3806,3491.0,3490.4,0.805]
[1719817528892,5.24513,3491.0,3490.4,0.805]
[1719817529094,5.24513,3491.0,3490.2,3.67016]
[1719817530696,2.274,3490.8,3490.2,0.805]
[1719817530897,2.274,3490.6,3490.0,3.6703]
[1719817531191,2.274,3490.5,3489.7,2.86549]
[1719817531404,2.274,3490.5,3489.9,0.805]
[1719817531554,2.274,3490.5,3489.7,3.67049]
[1719817531758,2.274,3490.5,3489.8,9.44731003]
[1719817532369,2.274,3490.5,3489.8,12.31277003]
[1719817532573,5.15798,3490.8,3489.8,12.31278003]
[1719817532764,2.2933,3490.7,3490.1,0.805]
[1719817532960,2.86489,3490.6,3490.1,0.805]
[1719817533798,2.4933,3490.5,3489.8,7.32]
[1719817534762,2.86501,3490.4,3489.8,7.32]
[1719817536464,2.3602,3490.3,3489.8,7.32]
[1719817536660,2.3602,3490.3,3489.7,0.805]
[1719817536968,2.3602,3490.3,3489.7,2.47610196]
[1719817537364,2.3602,3490.3,3489.6,0.805]
[1719817537678,2.86525,3490.1,3489.6,0.805]
[1719817537862,5.22529,3490.3,3489.6,0.805]
[1719817538066,2.86522,3490.2,3489.6,0.805]
[1719817539175,2.3602,3490.3,3489.8,0.805]
[1719817539375,2.3602,3490.3,3489.9,0.367064]
[1719817539585,2.3602,3490.3,3489.8,0.805]
[1719817539791,2.86493,3490.5,3490.0,0.805]
[1719817539989,5.31393,3490.5,3490.0,0.805]
[1719817541895,2.2933,3490.7,3490.2,0.805]
[1719817542498,2.2933,3490.7,3490.0,3.67031]
[1719817542697,2.2933,3490.7,3490.0,4.87538582]
[1719817542887,5.15807,3490.7,3490.0,4.87538582]
[1719817543406,5.15807,3490.7,3490.0,2.01007582]
[1719817544708,2.378,3490.4,3489.8,8.125]
[1719817545189,5.24303,3490.4,3489.8,8.125]
[1719817548107,5.24303,3490.4,3489.8,0.805]
[1719817554288,2.86513,3490.3,3489.4,10.1858]
[1719817554476,2.86513,3490.3,3489.5,2.4752]
[1719817554679,2.86513,3490.3,3489.7,0.805]
[1719817558291,0.805,3490.6,3489.4,10.1858]
[1719817558292,2.4362,3490.5,3489.4,7.32]
[1719817558495,0.805,3490.6,3489.4,8.125]
[1719817558496,5.176,3490.0,3489.4,8.125]
[1719817558694,5.176,3490.0,3489.4,10.42007469]
[1719817559294,5.176,3490.0,3489.4,9.61507469]
[1719817559606,5.176,3490.0,3489.6,0.805]
[1719817561438,2.86542,3489.9,3489.6,0.805]
[1719817561838,2.3106,3490.0,3489.6,0.805]
[1719817565646,2.86516,3490.2,3489.6,0.805]
[1719817565818,2.86516,3490.2,3489.7,1.04200747]
[1719817566011,2.86516,3490.2,3489.8,0.805]
[1719817566518,5.26343,3490.5,3490.0,0.805]
[1719817568746,2.3985,3490.5,3490.0,0.805]
[1719817568950,2.86436,3491.2,3490.2,0.805]
[1719817568951,5.22821,3491.0,3490.2,0.805]
[1719817569119,5.22821,3491.0,3490.4,0.805]
[1719817570027,5.22821,3491.0,3490.6,0.805]
[1719817570427,5.68447,3491.2,3490.6,0.805]
[1719817570639,3.0,3491.1,3490.6,0.805]
[1719817571037,5.68447,3491.2,3490.6,0.805]
[1719817571234,5.18147,3491.2,3490.6,0.805]
[1719817571414,2.86443,3491.1,3490.6,0.805]
[1719817572032,2.3171,3491.2,3490.6,0.805]
[1719817572033,5.18144,3491.2,3490.6,0.805]
[1719817572439,2.86444,3491.1,3490.6,0.805]
[1719817572637,2.86444,3491.1,3490.4,0.805]
[1719817572839,2.86444,3491.1,3490.4,1.692534]
[1719817575357,2.86451,3491.0,3490.4,1.692534]
[1719817576954,2.86468,3490.8,3490.0,2.2786]
[1719817577122,2.86468,3490.8,3490.2,0.805]
[1719817577925,5.12056,3491.0,3490.2,0.805]
[1719817578251,2.86459,3490.9,3490.2,0.805]
[1719817578563,2.86446,3491.1,3490.5,2.3167]
[1719817580258,2.86451,3491.0,3490.5,2.3167]
[1719817580460,5.23886,3491.3,3490.3,0.594884]
[1719817580461,2.8646,3490.9,3490.3,0.594884]
[1719817580759,2.86482,3490.7,3489.9,12.44089]
[1719817580926,5.11992,3490.7,3489.9,12.44089]
[1719817581126,5.11992,3490.7,3490.0,0.805]
[1719817581725,2.86453,3491.0,3490.4,0.805]
[1719817582166,2.8646,3490.9,3490.4,0.805]
[1719817588351,5.16718,3491.1,3490.4,0.805]
[1719817589564,2.86448,3491.1,3490.4,0.805]
[1719817589762,2.86448,3491.1,3490.6,0.805]
[1719817589929,2.86427,3491.3,3490.6,0.805]
[1719817590575,2.86436,3491.2,3490.6,0.805]
[1719817591267,2.86443,3491.1,3490.6,0.805]
[1719817592166,2.86427,3491.3,3490.6,0.805]
[1719817592359,2.86427,3491.3,3490.7,2.3706]
[1719817593539,2.8641,3491.5,3490.7,5.23534]
[1719817593864,5.86403,3491.6,3490.8,3.66966]
[1719817594443,5.86403,3491.6,3490.9,2.4489]
[1719817596341,5.86403,3491.6,3491.0,0.805]
[1719817606607,2.86415,3491.5,3490.9,3.2539]
[1719817610737,2.86418,3491.4,3490.9,3.2539]
[1719817612083,2.86418,3491.4,3490.9,2.4489]
[1719817613203,2.86418,3491.4,3490.7,3.2745]
[1719817613912,2.4975,3491.3,3490.7,2.4695]
[1719817614213,2.86443,3491.1,3490.7,2.4695]
[1719817614617,2.86443,3491.1,3490.5,3.0629]
[1719817615787,2.86443,3491.1,3490.7,0.805]
[1719817616719,5.36176,3491.3,3490.7,0.805]
[1719817616893,2.86426,3491.3,3490.7,0.805]
[1719817620639,2.86435,3491.2,3490.7,0.805]
[1719817620797,2.86442,3491.1,3490.7,0.805]
[1719817626013,2.86442,3491.1,3490.5,2.2579]
[1719817626014,2.86498,3490.5,3490.3,7.32]
[1719817626216,2.86498,3490.5,3490.0,2.4585]
[1719817627749,2.86477,3490.7,3490.1,0.805]
[1719817628403,2.86484,3490.6,3490.1,0.805]
[1719817628830,2.86516,3490.2,3489.7,9.652]
[1719817629031,2.86516,3490.2,3489.8,0.805]
[1719817630667,2.86541,3489.9,3489.1,7.32]
[1719817630800,2.2755,3490.8,3489.1,7.32]
[1719817630801,3.1415,3490.0,3489.1,7.32]
[1719817631106,3.1415,3490.0,3489.1,8.125]
[1719817631637,2.86571,3489.6,3489.1,7.32]
[1719817632330,2.86575,3489.5,3489.1,7.32]
[1719817634656,2.86575,3489.5,3488.9,2.4016]
[1719817634959,2.86567,3489.6,3489.0,0.607299]
[1719817637738,3.67049,3489.8,3489.0,0.607299]
[1719817637739,2.86588,3489.4,3489.0,0.607299]
[1719817637910,2.86574,3489.5,3488.6,9.809]
[1719817638114,2.86574,3489.5,3488.6,10.614]
[1719817638838,2.86592,3489.3,3488.6,10.614]
[1719817640436,2.86592,3489.3,3488.6,3.294]
[1719817640645,2.86592,3489.3,3488.7,0.64633391]
[1719817651257,2.86559,3489.7,3488.9,2.86623]
[1719817651431,2.86559,3489.7,3489.1,0.805]
[1719817651757,2.86566,3489.6,3489.1,0.805]
[1719817653658,2.86566,3489.6,3489.0,2.3581]
[1719817654182,2.86566,3489.6,3489.0,2.76849881]
[1719817655673,2.86551,3489.8,3489.0,2.76849881]
[1719817655877,2.86561,3489.7,3489.0,2.76849881]
[1719817657779,2.86551,3489.8,3489.1,0.805]
[1719817657985,2.86551,3489.8,3489.4,2.2935]
[1719817660554,2.86565,3489.7,3489.1,2.2958]
[1719817670304,2.86565,3489.6,3489.1,2.2958]
[1719817671618,5.18125,3489.8,3489.1,3.1008]
[1719817671969,2.86555,3489.8,3489.1,3.1008]
[1719817673368,5.2956,3490.4,3489.6,2.3407]
[1719817673706,5.1606,3490.4,3489.7,0.805]
[1719817674002,2.86525,3490.1,3489.7,0.805]
[1719817674967,2.86525,3490.1,3489.6,2.3407]
[1719817675172,2.86525,3490.1,3489.6,3.1457]
[1719817677298,2.86525,3490.1,3489.3,3.1642]
[1719817677528,2.86525,3490.1,3489.3,4.89063717]
[1719817678045,2.8655,3489.8,3489.2,7.32]
[1719817680439,5.16123,3490.0,3489.3,0.805]
[1719817680646,2.86533,3490.0,3489.4,2.477]
[1719817681227,2.3542,3490.3,3489.5,3.67068]
[1719817681471,2.3542,3490.3,3489.6,0.62049957]
[1719817682160,2.86517,3490.2,3489.7,3.0879]
[1719817682857,2.86517,3490.2,3489.7,2.2829]
[1719817684845,2.86492,3490.5,3489.8,2.86549]
[1719817685423,2.86492,3490.5,3489.8,3.81517801]
[1719817690561,2.86492,3490.5,3489.9,0.805]
[1719817690730,5.27002,3491.0,3490.1,0.805]
[1719817690929,3.0,3490.9,3490.1,0.805]
[1719817691352,5.86464,3490.9,3490.1,3.67023]
[1719817693390,2.86467,3490.8,3490.1,3.67023]
[1719817693535,3.0,3490.9,3490.1,0.805]
[1719817693739,2.86475,3490.7,3490.1,0.805]
[1719817694759,2.86497,3490.5,3489.8,2.3036]
[1719817697535,2.86514,3490.3,3489.8,2.3036]
[1719817697758,2.86514,3490.3,3489.7,7.32]
[1719817698163,2.86514,3490.3,3489.7,8.125]
[1719817699978,2.865,3490.4,3489.7,8.125]
[1719817700169,2.865,3490.4,3489.7,0.805]
[1719817700360,2.86509,3490.3,3489.7,0.805]
[1719817700984,2.86509,3490.3,3489.7,3.02458424]
[1719817704971,2.86528,3490.1,3489.6,2.2519]
[1719817708943,2.86534,3490.0,3489.6,2.2519]
[1719817710278,2.86516,3490.2,3489.7,0.805]
[1719817710699,2.86516,3490.2,3489.8,2.2808]
[1719817711540,2.86494,3490.5,3489.8,2.2808]
[1719817712944,2.8651,3490.3,3489.8,2.2808]
[1719817713547,2.86477,3490.7,3490.1,0.805]
[1719817713749,2.86484,3490.6,3490.0,3.1863]
[1719817715880,5.86459,3490.9,3490.0,3.1863]
[1719817716247,5.86459,3490.9,3490.0,4.1375408]
[1719817716776,2.86477,3490.7,3490.0,4.1375408]
[1719817720181,2.86477,3490.7,3490.0,7.0028508]
[1719817720378,2.86477,3490.7,3490.0,4.6788517]
[1719817720696,2.86477,3490.7,3490.1,2.4741]
[1719817720983,2.86477,3490.7,3490.2,0.71529517]
[1719817721281,2.86477,3490.7,3490.1,2.4741]
[1719817722788,6.16432,3490.5,3489.7,5.99386]
[1719817724449,5.35932,3490.5,3489.7,5.99386]
[1719817725147,5.35932,3490.5,3489.8,2.86548]
[1719817726500,5.35932,3490.5,3489.8,3.78311987]
[1719817727886,5.35932,3490.5,3489.9,0.805]
[1719817732787,2.86515,3490.3,3489.7,2.3233]
[1719817732988,2.86515,3490.3,3489.7,3.1283]
[1719817733580,2.86524,3490.2,3489.6,0.835]
[1719817733769,2.86524,3490.2,3489.6,2.21089615]
[1719817737198,2.86524,3490.2,3489.8,0.805]
[1719817739860,2.86506,3490.4,3489.8,0.805]
[1719817740883,2.86508,3490.3,3489.8,0.805]
[1719817743919,2.86508,3490.3,3489.6,5.07654615]
[1719817744104,2.86508,3490.3,3489.7,1.51346276]
[1719817747609,5.35933,3490.5,3489.7,4.37900276]
[1719817747815,3.0,3490.9,3489.9,5.3137]
[1719817747816,2.86486,3490.6,3489.9,5.3137]
[1719817748693,2.86486,3490.6,3490.0,0.805]
[1719817749102,5.29587,3490.8,3490.0,4.43352628]
[1719817749302,2.86443,3491.1,3490.5,3.1317]
[1719817756829,2.86452,3491.0,3490.3,3.1814]
[1719817758208,5.23639,3490.9,3490.3,3.1814]
[1719817758706,2.86484,3490.6,3490.0,0.28838283]
[1719817758900,2.86484,3490.6,3489.8,10.18547]
[1719817758901,2.86484,3490.6,3489.8,10.99047]
[1719817759099,2.86484,3490.6,3490.0,0.805]
[1719817761031,2.86467,3490.8,3490.1,2.86524]
[1719817761338,2.86467,3490.8,3490.4,0.805]
[1719817762617,2.86467,3490.8,3490.2,3.2829]
[1719817767431,2.86452,3491.0,3490.2,3.2829]
[1719817767931,2.3001,3491.3,3490.6,2.86477]
[1719817768132,5.3001,3491.3,3490.6,6.52877699]
[1719817768304,5.3001,3491.3,3490.6,6.15607]
[1719817768504,5.3001,3491.3,3490.6,5.35107]
[1719817770137,8.16436,3491.3,3490.6,5.35107]
[1719817771934,8.16436,3491.3,3490.6,6.15607]
[1719817782236,5.3001,3491.3,3490.6,3.2913]
[1719817782462,2.3001,3491.3,3490.6,2.4863]
[1719817782867,5.3001,3491.3,3490.6,2.4863]
[1719817783232,2.86443,3491.1,3490.6,2.4863]
[1719817783439,2.86443,3491.1,3490.4,3.176]
[1719817783848,2.86443,3491.1,3490.4,2.371]
[1719817784049,2.86473,3490.8,3490.3,7.32]
[1719817784273,5.27872,3490.7,3490.3,7.32]
[1719817787572,2.86485,3490.6,3490.3,7.32]
[1719817787775,2.86485,3490.6,3490.1,0.805]
[1719817788655,2.86491,3490.5,3490.0,2.3956]
[1719817788850,2.86491,3490.5,3490.1,0.805]
[1719817794278,2.86491,3490.5,3490.1,2.17242647]
[1719817798632,5.27871,3490.7,3490.1,2.17242647]
[1719817798932,2.86484,3490.6,3490.1,2.17242647]
[1719817800242,2.86492,3490.5,3489.8,7.60819469]
[1719817800410,2.86505,3490.4,3489.8,10.06059469]
[1719817801334,2.86517,3490.2,3489.8,7.60819469]
[1719817804519,2.86517,3490.2,3489.8,0.28819469]
[1719817804733,2.86517,3490.2,3489.6,3.2874]
[1719817804935,2.86517,3490.2,3489.7,0.615313]
[1719817806463,2.3268,3490.3,3489.7,0.615313]
[1719817806672,2.865,3490.4,3489.8,0.805]
[1719817807467,2.86492,3490.5,3490.0,0.805]
[1719817807671,2.86508,3490.3,3489.7,2.3807]
[1719817807855,2.86508,3490.3,3489.8,0.55667423]
[1719817810657,5.18458,3490.3,3489.7,3.1857]
[1719817814170,2.86508,3490.3,3489.7,3.1857]
[1719817814576,2.86492,3490.5,3489.9,0.805]
[1719817814871,2.86492,3490.5,3490.0,0.605126]
[1719817815273,2.86492,3490.5,3490.1,0.805]
[1719817815453,2.86492,3490.5,3490.1,3.072]
[1719817817641,2.86486,3490.6,3490.1,3.072]
[1719817818676,5.33632,3490.8,3490.1,3.7262546]
[1719817818871,2.86472,3490.8,3490.1,3.7262546]
[1719817820981,2.4225,3491.0,3490.1,3.7262546]
[1719817821185,5.15941,3491.2,3490.6,2.3823]
[1719817821549,2.86441,3491.2,3490.6,2.3823]
[1719817823389,2.86459,3490.9,3490.3,2.3502]
[1719817823683,2.86459,3490.9,3490.0,5.21552]
[1719817823684,0.805,3490.7,3490.0,5.21552]
[1719817823889,3.66976,3490.7,3490.0,5.21552]
[1719817824703,2.86476,3490.7,3490.0,5.21552]
[1719817824854,2.86476,3490.7,3489.9,7.32]
[1719817824855,0.805,3490.7,3489.9,7.32]
[1719817825161,2.2817,3490.6,3489.9,7.32]
[1719817825484,2.2817,3490.6,3489.8,5.22447]
[1719817825869,2.86493,3490.5,3489.8,5.22447]
[1719817832593,2.86493,3490.5,3489.8,2.359]
[1719817832797,2.86513,3490.3,3489.8,2.359]
[1719817832974,2.86493,3490.5,3489.6,7.35]
[1719817833319,2.86493,3490.5,3489.6,8.155]
[1719817833926,2.86518,3490.2,3489.6,8.155]
[1719817834210,2.86505,3490.4,3489.6,9.788833]
[1719817835096,2.86505,3490.4,3489.8,0.805]
[1719817835301,2.86493,3490.5,3489.8,0.805]
[1719817835987,2.865,3490.4,3489.8,0.805]
[1719817841747,2.865,3490.4,3489.9,2.3502]
[1719817844017,2.86489,3490.6,3489.9,2.3502]
[1719817844202,2.86476,3490.7,3489.9,4.22909078]
[1719817844527,2.86476,3490.7,3490.0,3.67032]
[1719817846199,2.86476,3490.7,3490.1,2.2553]
[1719817848689,2.86476,3490.7,3490.1,5.12054]
[1719817848899,2.86459,3490.9,3490.2,3.6701]
[1719817850130,2.86459,3490.9,3490.2,2.8651]
[1719817852459,2.86459,3490.9,3490.2,3.6701]
[1719817853465,2.86459,3490.9,3490.2,2.8651]
[1719817854476,2.86441,3491.2,3490.4,2.86494]
[1719817854641,2.86441,3491.2,3490.6,2.86482]
[1719817858145,3.0,3491.3,3490.7,2.86474]
[1719817858334,2.86418,3491.4,3490.8,2.86466]
[1719817858538,2.86418,3491.4,3490.9,2.3357]
[1719817858719,0.805,3491.5,3490.9,2.3357]
[1719817859325,2.86409,3491.5,3490.9,2.3357]
[1719817859858,2.86398,3491.7,3490.9,5.20028]
[1719817860154,0.805,3491.6,3490.9,5.20028]
[1719817860757,3.66898,3491.7,3490.9,5.20028]
[1719817860965,2.4002,3491.8,3491.0,0.86228717]
[1719817861175,2.86381,3491.9,3491.2,2.3742]
[1719817864162,2.86387,3491.8,3491.2,2.3742]
[1719817865689,2.86387,3491.8,3491.2,3.1792]
[1719817865875,2.86376,3492.0,3491.2,6.04352]
[1719817867160,2.86377,3491.9,3491.2,6.04352]
[1719817868014,5.26908,3492.4,3491.6,0.805]
[1719817868155,3.66816,3492.7,3491.8,0.805]
[1719817868356,0.805,3492.5,3491.6,8.18227411]
[1719817868757,3.66829,3492.5,3491.8,2.86383]
[1719817868979,2.86329,3492.5,3491.8,2.86383]
[1719817869165,2.86329,3492.5,3491.9,2.3793]
[1719817869994,3.66829,3492.5,3491.9,2.3793]
[1719817871707,2.86329,3492.5,3491.9,2.3793]
[1719817875521,2.86316,3492.7,3491.9,6.579853]
[1719817875823,0.805,3492.6,3491.9,6.579853]
[1719817875987,2.86316,3492.7,3491.9,6.579853]
[1719817876192,3.66816,3492.7,3491.9,6.579853]
[1719817876401,3.66816,3492.7,3492.0,1.0248683]
[1719817877537,2.86322,3492.6,3492.0,1.0248683]
[1719817882160,2.86328,3492.5,3492.0,1.0248683]
[1719817886062,2.8628,3493.1,3492.3,2.3749]
[1719817886368,2.8628,3493.1,3492.7,2.3749]
[1719817887281,2.86263,3493.3,3492.7,5.23799]
[1719817887740,2.86263,3493.3,3492.7,2.3749]
[1719817889486,3.66755,3493.4,3492.7,2.3749]
[1719817889684,5.24008,3493.9,3493.1,0.805]
[1719817890739,2.86243,3493.6,3492.8,7.63799]
[1719817891156,2.86243,3493.6,3492.9,0.805]
[1719817891745,2.86245,3493.5,3492.9,0.805]
[1719817892058,2.86245,3493.5,3492.9,2.173097]
[1719817897471,2.86225,3493.8,3493.1,0.805]
[1719817897677,2.86229,3493.7,3493.1,0.805]
[1719817898367,0.805,3494.0,3493.1,0.805]
[1719817898368,2.86238,3493.6,3493.1,0.805]
[1719817898548,2.86238,3493.6,3493.2,0.4669097]
[1719817899781,2.86247,3493.5,3493.2,0.4669097]
[1719817900464,2.86234,3493.7,3493.2,0.4669097]
[1719817901387,2.86238,3493.6,3493.2,0.4669097]
[1719817901552,2.86238,3493.6,3493.3,0.29629097]
[1719817902566,2.8623,3493.7,3493.3,0.29629097]
[1719817902960,2.86218,3493.9,3493.5,0.805]
[1719817903164,2.86169,3494.5,3493.8,2.3556]
[1719817903397,2.86133,3494.9,3494.0,0.805]
[1719817903557,2.86156,3494.6,3494.0,0.805]
[1719817903877,2.86164,3494.5,3493.8,3.1606]
[1719817904692,2.86164,3494.5,3493.8,6.02279]
[1719817905689,2.86151,3494.7,3493.9,2.86212]
[1719817905895,2.86156,3494.6,3493.9,0.888491]
[1719817906577,2.86156,3494.6,3493.9,3.750621]
[1719817906831,2.86156,3494.6,3493.9,0.888491]
[1719817907119,2.86156,3494.6,3493.8,2.3556]
[1719817907269,2.86158,3494.6,3493.8,5.2178]
[1719817907687,2.86166,3494.5,3493.8,5.2178]
[1719817907887,2.86186,3494.3,3493.8,2.3556]
[1719817908267,2.86186,3494.3,3493.9,0.521797]
[1719817917322,2.86186,3494.3,3493.8,2.3556]
[1719817918317,2.86165,3494.5,3493.8,2.3556]
[1719817918759,2.86172,3494.4,3493.8,2.3556]
[1719817920111,2.86181,3494.3,3493.8,2.3556]